bitfinex-derivatives/quotes_ETHF0:USTF0_20250923
["timestamp","ask_amount","ask_price","bid_price","bid_amount"]
[1758612435746,2.33373636,4204.0,4203.9,3.6288]
[1758612436344,2.33373636,4204.0,4203.9,3.943]
[1758612436551,2.00043636,4204.0,4203.9,3.943]
[1758612437143,0.5625,4204.5,4204.4,0.4193]
[1758612437345,1.11727443,4204.5,4204.4,0.7335]
[1758612437658,1.06918,4205.8,4204.7,0.4193]
[1758612437659,1.92313636,4204.8,4204.7,0.4193]
[1758612437853,2.22653636,4204.8,4204.7,0.4193]
[1758612439750,0.7339,4204.8,4204.7,0.7335]
[1758612439948,2.22653636,4204.8,4204.7,0.7335]
[1758612440653,0.7339,4204.8,4204.7,0.7335]
[1758612441644,0.7339,4204.8,4204.4,3.2078]
[1758612441645,2.43770688,4205.0,4204.9,0.7335]
[1758612441844,2.65740688,4205.0,4204.9,0.7335]
[1758612442050,2.65740688,4205.0,4204.9,0.4193]
[1758612442351,2.65740688,4205.0,4204.9,0.2069]
[1758612442547,2.35400688,4205.0,4204.6,0.74198]
[1758612442752,0.7339,4204.8,4204.7,1.16128]
[1758612442953,0.7339,4204.8,4204.7,4.36908]
[1758612444746,0.7339,4204.8,4204.7,4.05488]
[1758612447956,0.7339,4204.8,4204.7,4.36908]
[1758612448549,0.7339,4204.8,4204.7,4.05488]
[1758612449451,0.7339,4204.8,4204.7,4.36908]
[1758612450963,0.7339,4204.8,4204.7,3.9413]
[1758612451651,0.7339,4204.8,4204.7,3.6271]
[1758612452150,0.7339,4204.8,4204.2,3.63563]
[1758612452358,0.8727,4204.5,4204.4,0.2173]
[1758612452661,0.8727,4204.5,4204.4,0.7719]
[1758612452855,0.98865,4205.0,4204.9,0.2173]
[1758612453056,2.78015688,4205.0,4204.9,0.4372]
[1758612453457,3.10165688,4205.0,4204.9,0.4372]
[1758612453762,3.10165688,4205.0,4204.9,0.2173]
[1758612454368,0.7504,4204.9,4204.8,3.9797]
[1758612454858,0.7504,4204.9,4204.8,3.2078]
[1758612455760,0.7504,4204.9,4204.8,3.4251]
[1758612457061,2.54190688,4204.9,4204.8,3.4251]
[1758612457267,2.54190688,4204.9,4204.8,3.9797]
[1758612460258,2.54190688,4204.9,4204.8,3.645]
[1758612461763,0.7573,4204.5,4204.4,0.2173]
[1758612461964,0.8727,4204.5,4204.4,0.2173]
[1758612462160,0.8727,4204.5,4204.4,0.4372]
[1758612462359,0.8727,4204.5,4204.4,0.7719]
[1758612462865,0.8727,4204.5,4204.4,0.4372]
[1758612463565,0.8727,4204.5,4204.4,0.2173]
[1758612463766,0.8727,4204.5,4203.8,3.2078]
[1758612463767,0.8727,4204.0,4203.9,1.19976]
[1758612464360,0.8727,4204.0,4203.9,0.2173]
[1758612464560,0.8727,4204.0,4203.9,0.4372]
[1758612465660,0.2072,4204.3,4204.2,0.86503]
[1758612465863,1.06924,4205.6,4204.6,0.86498]
[1758612465864,0.2072,4204.7,4204.6,0.86498]
[1758612466070,0.2072,4204.7,4204.6,4.07278]
[1758612466366,1.79150688,4204.9,4204.6,4.40748]
[1758612466567,1.99870688,4204.9,4204.8,0.7719]
[1758612466768,2.22040688,4204.9,4204.8,0.7719]
[1758612467168,2.54190688,4204.9,4204.8,0.7719]
[1758612467366,2.54190688,4204.9,4204.8,0.4372]
[1758612468765,2.54190688,4204.9,4204.8,0.7719]
[1758612469069,2.32020688,4204.9,4204.8,0.7719]
[1758612469466,0.42766,4205.9,4205.3,0.7719]
[1758612469671,0.7504,4205.9,4205.8,0.7719]
[1758612469865,3.0956829,4205.9,4205.8,0.4372]
[1758612470169,3.0956829,4205.9,4205.8,0.2173]
[1758612471872,2.54190688,4205.9,4205.8,0.2173]
[1758612473073,0.85658,4205.6,4205.5,3.4251]
[1758612473272,1.17808,4205.6,4205.5,3.4251]
[1758612473569,2.96958688,4205.6,4205.5,3.2078]
[1758612473767,2.54190688,4205.6,4205.5,3.2078]
[1758612473966,2.54190688,4205.6,4205.5,3.4251]
[1758612474264,2.54190688,4205.6,4205.5,3.645]
[1758612474265,0.7504,4205.6,4205.5,3.645]
[1758612474576,0.7504,4205.6,4205.5,3.9797]
[1758612475073,0.7504,4205.6,4205.5,3.2078]
[1758612476171,0.8727,4205.0,4204.9,0.64505]
[1758612476366,0.8727,4205.0,4204.9,0.86495]
[1758612476565,0.8727,4205.0,4204.9,1.19965]
[1758612477568,0.5287,4205.0,4204.9,1.19965]
[1758612477865,0.3215,4205.0,4204.9,1.19965]
[1758612478468,0.7504,4205.4,4205.3,1.19961]
[1758612478665,0.7504,4205.4,4205.3,4.40741]
[1758612479870,0.85656,4205.9,4205.8,0.2173]
[1758612480172,2.64806688,4205.9,4205.5,0.42768]
[1758612480367,0.5432,4205.8,4205.7,0.2173]
[1758612480572,0.7504,4205.8,4205.7,0.2173]
[1758612481069,0.85656,4205.8,4205.4,0.4277]
[1758612481374,0.8913,4205.5,4205.4,1.158]
[1758612482268,0.7574,4205.5,4205.4,1.158]
[1758612482470,0.5451,4205.8,4205.7,0.95557]
[1758612482677,0.7574,4205.8,4205.7,1.15797]
[1758612483476,0.5451,4205.8,4205.7,1.15797]
[1758612483778,0.3244,4206.0,4205.9,0.84205]
[1758612483976,0.5451,4206.0,4205.9,1.15795]
[1758612485173,0.8913,4206.0,4205.9,1.15795]
[1758612485871,0.3244,4206.0,4205.9,4.36575]
[1758612486077,0.2207,4206.5,4206.4,1.1579]
[1758612486275,0.2207,4206.5,4206.4,4.3657]
[1758612486675,0.5451,4206.9,4206.8,1.15786]
[1758612487373,0.7574,4206.9,4206.8,1.15786]
[1758612488173,1.18495,4206.9,4206.8,0.2024]
[1758612488772,0.7574,4206.9,4206.8,0.2024]
[1758612489576,0.86056,4206.9,4206.5,0.42759]
[1758612489776,0.7574,4206.6,4206.5,0.62999]
[1758612490179,0.7574,4206.6,4206.5,41.42999]
[1758612490977,0.7574,4206.6,4206.5,41.74589]
[1758612495675,0.7574,4206.6,4206.4,3.2078]
[1758612495880,0.7574,4206.1,4206.0,0.63004]
[1758612496181,0.7574,4206.1,4206.0,41.0024]
[1758612496772,0.7574,4206.1,4206.0,0.2024]
[1758612498077,0.7574,4206.1,4206.0,0.4097]
[1758612498273,0.7574,4206.1,4206.0,0.744]
[1758612498473,0.7574,4206.1,4206.0,0.4097]
[1758612498776,0.7574,4206.1,4206.0,0.2024]
[1758612499372,0.7574,4206.1,4206.0,0.744]
[1758612501073,0.7574,4206.1,4206.0,0.4097]
[1758612501473,0.7574,4206.1,4206.0,0.2024]
[1758612501679,0.42764,4206.0,4205.9,40.8]
[1758612501874,0.7529,4205.9,4205.8,3.2078]
[1758612502074,2.54440688,4205.9,4205.8,3.2078]
[1758612502572,2.24530387,4205.9,4205.8,3.2078]
[1758612502973,0.7529,4205.4,4205.3,4.18961]
[1758612503176,0.7529,4205.4,4205.3,4.39691]
[1758612504183,0.534,4205.3,4205.2,0.2198]
[1758612504382,2.24530387,4205.3,4205.2,0.2198]
[1758612507683,0.7529,4204.9,4204.8,3.2078]
[1758612507878,0.5319,4204.4,4204.3,4.39701]
[1758612508080,0.5319,4204.4,4204.3,45.19701]
[1758612508388,0.313,4204.4,4204.3,45.19701]
[1758612508891,2.24530387,4204.9,4204.8,1.18916]
[1758612509080,2.24530387,4204.9,4204.8,4.39696]
[1758612509481,0.313,4204.9,4204.8,4.39696]
[1758612509683,0.7529,4205.3,4205.2,1.18911]
[1758612510375,1.80540387,4205.5,4205.4,0.4271]
[1758612510578,1.80540387,4205.5,4205.4,0.7614]
[1758612510778,2.01250387,4205.5,4205.4,0.7614]
[1758612510987,2.34490387,4205.5,4205.4,0.7614]
[1758612511788,2.34490387,4205.5,4205.4,3.9692]
[1758612518785,0.8525,4205.5,4205.4,3.9692]
[1758612518990,0.857,4206.0,4205.9,0.222]
[1758612519290,2.34940387,4206.0,4205.9,0.64965]
[1758612519688,2.34940387,4206.0,4205.9,1.17505]
[1758612519893,0.857,4206.0,4205.9,4.38285]
[1758612521393,0.7325,4206.0,4205.9,4.38285]
[1758612521985,2.01350387,4206.3,4206.2,0.86322]
[1758612522195,0.5211,4206.3,4206.2,1.17502]
[1758612524096,0.7325,4206.3,4206.2,0.86322]
[1758612524303,0.314,4206.2,4206.0,41.22764]
[1758612524501,3.71730774,4206.1,4206.0,40.8]
[1758612524795,0.8535,4206.0,4205.9,3.2078]
[1758612524987,0.4185,4205.2,4205.1,3.85753]
[1758612525192,2.22490387,4205.2,4205.1,3.85753]
[1758612525394,2.22490387,4205.2,4205.1,4.07113]
[1758612525701,2.22490387,4205.2,4205.1,0.86333]
[1758612527291,2.22490387,4205.2,4204.6,40.8]
[1758612527292,0.4185,4204.7,4204.6,40.8]
[1758612527600,0.7325,4204.7,4204.6,41.53958]
[1758612528204,0.5211,4204.7,4204.6,41.53958]
[1758612529205,1.68642639,4207.0,4205.3,1.17511]
[1758612529396,0.314,4205.5,4205.4,0.7474]
[1758612529997,0.5211,4205.5,4205.4,0.7474]
[1758612532497,0.314,4205.5,4205.4,0.7474]
[1758612533002,0.5211,4205.5,4205.4,0.7474]
[1758612533505,1.49240387,4205.7,4205.5,0.42769]
[1758612533705,2.01350387,4205.7,4205.6,0.7474]
[1758612534001,2.22490387,4205.7,4205.6,0.7474]
[1758612534708,4.82120387,4206.0,4205.6,0.7474]
[1758612534899,0.5211,4205.8,4205.7,0.42767]
[1758612535100,0.5211,4205.8,4205.7,0.86327]
[1758612535405,0.5211,4205.8,4205.7,1.17507]
[1758612536103,0.7325,4205.8,4205.7,1.17507]
[1758612537005,0.5211,4205.8,4205.7,1.17507]
[1758612537597,2.01350387,4205.8,4205.7,1.17507]
[1758612538495,2.22490387,4205.8,4205.7,1.17507]
[1758612539309,2.22490387,4205.8,4205.7,0.86327]
[1758612539507,0.7325,4204.9,4204.8,4.07116]
[1758612539808,0.7325,4204.4,4204.2,0.42782]
[1758612540111,2.22490387,4204.3,4204.2,0.64982]
[1758612541000,2.22490387,4204.3,4204.2,0.222]
[1758612541206,0.4395,4204.0,4203.9,41.22785]
[1758612541610,1.93190387,4204.0,4203.9,41.22785]
[1758612542499,1.93190387,4204.0,4203.5,0.3315]
[1758612542500,0.4334,4203.4,4203.3,3.2078]
[1758612542717,0.5398,4203.0,4202.9,2.59241424]
[1758612542908,0.5398,4203.0,4202.9,0.79209338]
[1758612543211,0.5398,4203.0,4202.9,41.59209338]
[1758612543412,0.6614,4203.0,4202.9,41.59209338]
[1758612543715,0.8729,4203.0,4202.9,0.24139338]
[1758612547613,0.8729,4203.0,4202.9,0.46059338]
[1758612548709,0.8729,4203.0,4202.9,0.24139338]
[1758612550608,0.8729,4203.0,4202.9,0.02379338]
[1758612552108,0.8729,4203.0,4202.9,0.66935338]
[1758612552306,0.8729,4203.0,4202.9,0.88855338]
[1758612552905,2.24370387,4203.3,4203.2,0.7683]
[1758612553114,0.1216,4203.0,4202.9,0.02379338]
[1758612553318,2.36530387,4203.0,4202.9,0.46059338]
[1758612553710,2.24370387,4203.0,4202.9,0.79209338]
[1758612555817,2.36530387,4203.0,4202.9,0.79209338]
[1758612556018,2.36530387,4203.0,4202.9,0.46059338]
[1758612556323,2.36530387,4203.0,4202.9,0.02379338]
[1758612557023,2.36530387,4203.0,4202.9,0.24139338]
[1758612557418,2.36530387,4203.0,4202.9,0.79209338]
[1758612557618,2.24370387,4203.0,4202.9,0.79209338]
[1758612558518,2.36530387,4203.0,4202.9,0.79209338]
[1758612558917,2.36530387,4203.0,4202.9,0.46059338]
[1758612560327,2.36530387,4203.0,4202.9,0.24139338]
[1758612564519,0.8729,4203.0,4202.9,0.24139338]
[1758612564719,2.66600373,4203.0,4202.9,0.24139338]
[1758612564919,2.66600373,4203.0,4202.9,0.02379338]
[1758612568229,2.66600373,4203.0,4202.9,0.23749338]
[1758612569127,2.66600373,4203.0,4202.9,0.02379338]
[1758612572131,3.22783667,4203.0,4202.9,0.02379338]
[1758612579633,2.66600373,4203.0,4202.9,0.23849338]
[1758612581032,0.5398,4203.0,4202.9,0.77759338]
[1758612581337,0.8768,4203.0,4202.9,0.77759338]
[1758612583437,0.5398,4203.0,4202.9,0.77759338]
[1758612584342,0.8768,4203.0,4202.9,0.77759338]
[1758612586736,0.8768,4203.0,4202.9,0.45499338]
[1758612589643,0.8768,4203.0,4202.9,0.77759338]
[1758612590543,0.3179,4203.0,4202.9,0.77759338]
[1758612590944,0.5258,4203.0,4202.9,0.77759338]
[1758612591144,0.8628,4203.0,4202.9,0.77759338]
[1758612592145,0.8628,4203.0,4202.9,0.45499338]
[1758612593545,0.8628,4203.0,4202.9,0.23849338]
[1758612595054,0.8628,4203.0,4202.9,0.02379338]
[1758612598453,2.65590373,4203.0,4202.9,0.02379338]
[1758612601155,2.65590373,4203.0,4202.9,0.23999338]
[1758612601451,2.65590373,4203.0,4202.9,0.02379338]
[1758612602147,2.65590373,4203.0,4201.9,2.13182086]
[1758612602148,0.3081,4202.2,4201.9,2.13182086]
[1758612602355,2.52080373,4202.2,4202.1,3.63583]
[1758612602547,2.52080373,4202.2,4202.1,3.2078]
[1758612603851,2.52080373,4202.2,4201.5,0.42809]
[1758612603852,0.7277,4201.6,4201.5,3.63589]
[1758612604057,0.97564659,4201.6,4201.5,3.63589]
[1758612604360,0.97564659,4201.6,4201.5,3.85209]
[1758612604749,0.97564659,4201.6,4201.5,3.63589]
[1758612605352,0.97564659,4201.6,4201.5,3.85209]
[1758612605961,0.97564659,4201.6,4201.5,3.63589]
[1758612606161,0.97564659,4201.6,4201.5,3.85209]
[1758612606660,0.55604659,4201.6,4201.5,4.37169]
[1758612606959,0.24794659,4201.6,4201.5,4.41049]
[1758612607557,0.24794659,4201.6,4201.5,8.6485]
[1758612607755,0.7277,4202.1,4202.0,0.4184]
[1758612607962,0.7277,4202.1,4202.0,0.2162]
[1758612611366,0.7277,4202.1,4201.9,0.42805]
[1758612611367,0.8561,4202.0,4201.9,0.42805]
[1758612611563,0.7277,4201.8,4201.7,0.42807]
[1758612611865,2.76822394,4201.8,4201.7,0.42807]
[1758612612362,0.42818,4200.7,4200.5,0.1319]
[1758612612560,0.4282,4200.5,4200.3,0.3174]
[1758612612762,0.24742021,4200.4,4200.1,0.3174]
[1758612612964,1.79310373,4200.1,4200.0,0.1319]
[1758612613173,0.42825,4200.0,4199.8,0.3174]
[1758612613467,0.24742021,4199.9,4199.6,0.3174]
[1758612613766,0.24742021,4199.9,4198.5,0.1319]
[1758612613767,1.79310373,4199.7,4199.1,0.3174]
[1758612613969,5.00090373,4199.2,4199.1,0.5336]
[1758612614159,5.24832394,4199.2,4199.1,0.7358]
[1758612615171,5.00090373,4199.2,4199.1,0.7358]
[1758612615671,5.24702553,4199.2,4199.1,0.5336]
[1758612615870,5.24702111,4199.2,4199.1,0.5336]
[1758612616060,5.00090373,4199.2,4199.1,0.5336]
[1758612616666,5.00090373,4199.2,4199.1,0.3174]
[1758612617074,5.00090373,4199.2,4199.1,0.5336]
[1758612617767,5.00090373,4199.2,4199.1,0.3174]
[1758612617969,5.00090373,4199.2,4199.1,0.5387]
[1758612618570,3.2078,4199.2,4199.1,0.7476]
[1758612618770,3.2078,4199.7,4199.6,0.98479]
[1758612618970,3.45338071,4199.7,4199.6,1.19369]
[1758612619181,3.2078,4199.7,4199.6,1.19289]
[1758612619374,3.2078,4199.7,4199.6,0.98399]
[1758612619573,3.2078,4199.7,4199.6,1.19289]
[1758612620580,3.2078,4199.7,4199.6,1.19369]
[1758612623285,3.45325898,4199.7,4199.6,1.19369]
[1758612623778,3.2078,4199.7,4199.6,1.19369]
[1758612624478,0.23076541,4201.3,4199.6,1.19369]
[1758612624479,3.2078,4200.9,4199.6,6.12830373]
[1758612624678,2.03861525,4200.8,4200.6,0.2213]
[1758612624882,2.03861525,4200.8,4200.5,0.1325]
[1758612624883,1.79310373,4200.8,4200.7,0.3352]
[1758612625083,2.03861865,4200.8,4200.7,0.3352]
[1758612625387,2.03861865,4200.8,4200.7,0.76338]
[1758612626484,2.03861865,4200.8,4200.7,0.3352]
[1758612626678,1.74164645,4200.8,4200.7,0.3352]
[1758612628088,1.74164645,4200.8,4200.7,0.7654]
[1758612628885,0.24551492,4200.8,4200.7,0.7654]
[1758612629387,0.24551492,4200.8,4200.7,2.26153153]
[1758612630183,4.70393153,4201.5,4201.4,0.4302]
[1758612630388,1.49613153,4201.8,4201.7,0.42808]
[1758612630688,1.49613153,4201.8,4201.7,0.95198]
[1758612630989,1.49613153,4201.8,4201.7,1.16278]
[1758612631486,4.70393153,4202.1,4202.0,0.42805]
[1758612631689,4.70393153,4202.1,4202.0,1.28895]
[1758612633096,1.49613153,4202.1,4202.0,1.28895]
[1758612633286,3.2078,4202.8,4202.6,0.42798]
[1758612633488,1.49613153,4202.7,4202.6,0.64738]
[1758612634079,1.49613153,4202.7,4202.6,0.95188]
[1758612634693,1.49613153,4202.7,4202.6,1.16268]
[1758612635382,1.49613153,4202.7,4202.6,0.7347]
[1758612639280,1.49613153,4202.7,4202.6,0.5239]
[1758612639893,1.49613153,4202.7,4202.6,0.3045]
[1758612640089,1.49613153,4202.7,4202.2,0.3045]
[1758612640393,1.49613153,4202.3,4202.2,0.3045]
[1758612642185,3.2078,4202.8,4202.2,0.7347]
[1758612642386,1.49613153,4202.7,4202.6,1.16269]
[1758612645991,1.49613153,4202.7,4202.5,0.1262]
[1758612646201,0.42804,4202.1,4201.5,0.437]
[1758612646493,1.49613153,4201.6,4201.5,0.437]
[1758612646691,1.74654835,4201.6,4201.5,0.437]
[1758612646895,3.24267988,4201.6,4201.5,0.437]
[1758612647595,7.24267988,4201.6,4201.5,0.1325]
[1758612647806,7.83493903,4201.6,4201.1,0.3045]
[1758612647994,5.13206153,4201.2,4201.1,0.3045]
[1758612648194,5.38247835,4201.2,4201.1,0.3045]
[1758612648394,5.97494269,4201.2,4201.1,0.3045]
[1758612648594,8.69371791,4201.2,4201.1,0.3045]
[1758612650399,9.28656746,4201.2,4201.1,0.3045]
[1758612651191,8.69371791,4201.2,4201.1,0.3045]
[1758612651398,9.28670691,4201.2,4201.1,0.3045]
[1758612651703,3.45861985,4201.2,4201.1,0.7347]
[1758612652703,3.88674985,4201.2,4201.1,0.7347]
[1758612653001,3.88674985,4201.2,4201.1,0.5239]
[1758612653202,3.88674985,4201.2,4201.1,0.3045]
[1758612653504,3.88674985,4201.2,4201.1,0.5239]
[1758612653998,3.88674985,4201.2,4201.1,0.7347]
[1758612654389,4.05222255,4201.2,4201.1,0.7347]
[1758612656109,3.45861985,4201.2,4201.1,0.7347]
[1758612658309,0.25081985,4201.2,4201.1,4.97273]
[1758612658704,0.25081985,4201.2,4201.1,4.7347]
[1758612659906,0.25081985,4201.2,4201.1,7.9425]
[1758612660403,5.23550109,4202.5,4202.3,0.3045]
[1758612660606,3.2078,4202.8,4202.6,0.3085]
[1758612660904,3.2078,4202.8,4202.7,0.3085]
[1758612661103,3.8017741,4202.8,4202.7,0.3085]
[1758612661905,3.2078,4202.8,4202.7,0.7371]
[1758612662104,5.23550109,4203.0,4202.9,0.4286]
[1758612662306,5.23550109,4203.0,4202.9,0.7371]
[1758612662502,5.23550109,4203.5,4202.9,0.7371]
[1758612662708,0.59396488,4203.4,4203.3,0.3085]
[1758612662900,0.59396488,4203.4,4203.3,0.519]
[1758612664403,5.23550109,4203.5,4203.4,0.42791]
[1758612664605,5.23550109,4203.5,4203.4,0.94691]
[1758612664902,5.23550109,4203.5,4203.4,0.519]
[1758612666406,5.23550109,4204.0,4203.7,0.3085]
[1758612666609,3.2078,4204.1,4204.0,0.4373]
[1758612666809,3.80136674,4204.1,4204.0,0.4373]
[1758612668208,3.80136674,4204.1,4204.0,0.8659]
[1758612668811,3.80136674,4204.1,4204.0,0.4373]
[1758612669512,9.03686783,4204.1,4204.0,0.4373]
[1758612670111,9.03686783,4204.1,4204.0,0.1288]
[1758612670311,0.42787,4203.8,4203.7,0.3085]
[1758612671015,8.87114109,4204.1,4204.0,0.6478]
[1758612671208,0.42789,4203.6,4203.5,0.4373]
[1758612671408,5.66339109,4203.6,4203.5,0.1288]
[1758612671710,9.46394018,4203.6,4203.5,0.1288]
[1758612673207,9.46394018,4203.6,4203.5,0.4373]
[1758612674101,3.80054909,4203.6,4203.5,0.4373]
[1758612674303,0.42788,4203.7,4203.5,0.4373]
[1758612674509,5.23550109,4203.6,4203.5,0.4373]
[1758612677717,8.44330109,4203.6,4203.5,0.4373]
[1758612677909,9.03575903,4203.6,4203.5,0.1288]
[1758612678613,8.44330109,4203.6,4203.5,0.6543]
[1758612678814,8.44330109,4203.6,4203.5,0.8732]
[1758612679012,5.23550109,4203.6,4203.5,0.8732]
[1758612680919,0.42794,4203.1,4203.0,0.1288]
[1758612681118,8.87124109,4203.1,4203.0,0.1288]
[1758612681313,0.42799,4202.6,4201.8,0.42806]
[1758612681612,5.66354109,4202.1,4202.0,0.6543]
[1758612682018,5.48657654,4202.1,4202.0,0.8732]
[1758612682218,5.23550109,4202.1,4202.0,0.8732]
[1758612683222,5.23550109,4202.1,4202.0,0.6543]
[1758612683418,8.44330109,4202.6,4202.1,0.42804]
[1758612683617,8.87129109,4202.6,4202.5,0.4423]
[1758612683921,3.63579,4202.6,4202.5,0.8666]
[1758612684315,3.63579,4202.6,4202.5,0.4423]
[1758612684819,3.2078,4202.6,4202.5,0.8666]
[1758612685216,3.2078,4202.6,4202.5,0.4423]
[1758612685611,0.42798,4202.7,4202.6,0.3201]
[1758612685919,0.42798,4202.7,4202.6,0.7444]
[1758612686319,0.42801,4202.4,4202.3,0.3201]
[1758612686520,0.42804,4202.1,4202.0,0.4489]
[1758612688019,5.66351109,4202.4,4202.1,0.3201]
[1758612688216,5.66351109,4202.4,4202.3,0.3201]
[1758612688420,6.25838683,4202.4,4202.3,0.3201]
[1758612688625,1.02288574,4202.4,4202.3,0.3201]
[1758612690025,1.02288574,4202.4,4202.3,0.5255]
[1758612690225,0.59487574,4202.4,4202.3,0.5255]
[1758612690726,0.59487574,4202.4,4202.3,0.7444]
[1758612691623,0.42795,4203.0,4202.9,0.2085]
[1758612691824,1.02302021,4203.0,4202.9,0.5437]
[1758612692019,0.59507021,4203.0,4202.9,0.5437]
[1758612692324,3.2078,4203.2,4203.1,0.5437]
[1758612692528,3.80278918,4203.2,4203.1,0.3352]
[1758612693431,3.80278918,4203.2,4203.1,0.7468]
[1758612694927,0.59498918,4203.2,4203.1,0.7468]
[1758612695131,3.2078,4203.9,4203.5,0.3364]
[1758612695332,1.022993,4203.8,4203.7,0.5437]
[1758612696131,1.022993,4203.8,4203.7,0.3352]
[1758612697741,0.42792,4203.3,4203.2,0.3352]
[1758612698136,1.023043,4203.3,4203.2,0.3352]
[1758612698337,0.595123,4203.3,4203.2,0.7468]
[1758612700645,0.595123,4203.3,4203.2,0.5437]
[1758612700844,0.595123,4203.3,4203.2,0.3352]
[1758612701745,0.42793,4203.2,4203.0,0.4631]
[1758612701946,0.595123,4203.1,4203.0,0.4631]
[1758612704042,0.595123,4203.1,4203.0,0.6716]
[1758612705137,0.595123,4203.1,4203.0,0.4631]
[1758612707653,0.595123,4203.1,4203.0,0.6716]
[1758612709953,0.595123,4203.1,4203.0,0.4631]
[1758612711059,0.595123,4203.1,4203.0,0.6716]
[1758612711654,0.595123,4203.1,4203.0,0.8747]
[1758612712047,0.595123,4203.3,4203.0,0.8747]
[1758612712359,0.595123,4203.3,4203.2,0.7468]
[1758612714755,0.42789,4203.6,4203.5,0.8747]
[1758612714956,0.59599676,4203.6,4203.5,0.5395]
[1758612715257,0.59599676,4203.6,4203.5,0.8747]
[1758612718456,0.59599676,4203.6,4203.5,0.6716]
[1758612718658,0.59599676,4203.6,4203.5,0.4631]
[1758612719557,0.59599676,4203.6,4203.5,0.8747]
[1758612727063,0.59599676,4203.6,4203.5,4.8747]
[1758612728059,3.2078,4204.4,4203.6,1.49762]
[1758612728264,3.2078,4204.4,4204.3,0.733]
[1758612728466,3.80373363,4204.4,4204.3,1.16082]
[1758612729069,3.80373363,4204.4,4204.3,0.733]
[1758612730674,5.59596308,4204.4,4204.3,0.733]
[1758612730973,0.59593363,4204.4,4204.3,0.733]
[1758612732471,3.2078,4204.9,4204.8,1.16077]
[1758612732672,3.80297934,4204.9,4204.8,1.16077]
[1758612733074,3.80297934,4204.9,4204.8,0.733]
[1758612733870,5.59520879,4204.9,4204.8,0.733]
[1758612735181,5.59520879,4204.9,4204.8,0.3078]
[1758612735385,3.80297934,4204.9,4204.8,0.3078]
[1758612735574,5.59520879,4204.9,4204.8,0.3078]
[1758612737987,5.59520879,4204.9,4204.8,0.7239]
[1758612738181,5.59520879,4204.9,4204.8,0.5176]
[1758612739584,0.42778,4204.7,4204.6,0.3143]
[1758612739779,1.02295934,4204.7,4204.6,0.5315]
[1758612739980,1.02295934,4204.7,4204.6,0.7378]
[1758612741182,0.59517934,4204.7,4204.6,0.7378]
[1758612745292,0.59517934,4204.7,4204.6,0.3143]
[1758612745997,0.59517934,4204.7,4204.6,0.5315]
[1758612747694,0.42779,4204.6,4204.5,0.4472]
[1758612747894,2.81519879,4204.6,4204.5,0.4472]
[1758612748790,2.81519879,4204.6,4204.5,0.6644]
[1758612748995,2.81519879,4204.6,4204.5,0.8707]
[1758612749396,2.81519879,4204.6,4204.5,0.4472]
[1758612749901,2.81519879,4204.6,4204.5,0.38515814]
[1758612750101,2.81519879,4204.6,4204.5,0.07085814]
[1758612750697,4.0105688,4204.6,4204.5,0.07085814]
[1758612751100,2.51676907,4204.6,4204.5,0.38375814]
[1758612752297,2.51676907,4204.6,4204.5,0.58745814]
[1758612752494,2.51676907,4204.6,4204.5,0.80155814]
[1758612754198,4.0105688,4204.6,4204.5,0.38375814]
[1758612759109,4.0105688,4204.6,4204.5,0.58745814]
[1758612760007,2.08897907,4204.6,4204.5,0.80155814]
[1758612762202,2.08897907,4204.6,4204.5,0.58745814]
[1758612762409,3.5827788,4204.6,4204.5,0.38375814]
[1758612763408,0.59517934,4204.6,4204.5,0.38375814]
[1758612763705,2.08897907,4204.6,4204.5,0.38375814]
[1758612764809,3.5827788,4204.6,4204.5,0.38375814]
[1758612765006,0.42783,4204.2,4204.1,0.3129]
[1758612765206,0.7481,4203.6,4203.3,0.42791]
[1758612765407,1.71039973,4203.4,4203.3,0.42792]
[1758612765707,2.30557907,4203.4,4203.3,0.84572]
[1758612766109,2.08897907,4203.4,4203.3,0.84572]
[1758612766308,0.59517934,4203.4,4203.3,6.57742973]
[1758612766612,1.49379973,4204.1,4204.0,0.97965]
[1758612766910,2.08893101,4204.1,4204.0,0.97965]
[1758612767404,2.08893101,4204.1,4204.0,1.29255]
[1758612767708,2.30553101,4204.1,4204.0,1.29255]
[1758612769704,2.08893101,4204.1,4204.0,1.29255]
[1758612769904,0.59513128,4204.1,4204.0,1.29255]
[1758612770511,0.59513128,4204.1,4204.0,5.29255]
[1758612774818,2.08893101,4204.1,4204.0,5.29255]
[1758612775915,0.59513128,4204.1,4204.0,5.29255]
[1758612779915,3.2078,4206.0,4205.9,1.15835]
[1758612780112,3.2078,4206.5,4205.9,1.91159973]
[1758612780308,3.2078,4206.5,4206.4,0.7307]
[1758612781214,4.70159973,4207.0,4206.5,0.4513]
[1758612781420,4.91049973,4207.0,4206.9,0.764]
[1758612782313,4.70159973,4207.0,4206.9,0.764]
[1758612782714,0.4254,4205.3,4205.2,0.3302]
[1758612782919,3.2078,4205.5,4205.2,0.764]
[1758612783115,3.2078,4206.1,4205.5,0.1211]
[1758612783327,3.6332,4206.1,4206.0,0.8851]
[1758612783526,5.12699973,4206.1,4206.0,0.8851]
[1758612783913,0.42766,4205.9,4205.5,0.1211]
[1758612784112,0.42774,4205.1,4205.0,0.5678]
[1758612784320,1.91919973,4205.1,4205.0,0.5678]
[1758612784621,1.91919973,4205.1,4205.0,0.898]
[1758612789627,0.42777,4204.8,4204.7,40.8]
[1758612789824,1.17729,4204.6,4204.5,0.3302]
[1758612791027,2.67108973,4204.6,4204.5,0.6696]
[1758612794231,0.42784,4204.1,4204.0,3.3289]
[1758612794525,2.67113973,4204.1,4204.0,0.3394]
[1758612794728,2.67113973,4204.1,4204.0,0.2183]
[1758612794926,2.67113973,4204.1,4204.0,0.5485]
[1758612795326,2.24329973,4204.1,4204.0,0.5485]
[1758612795522,1.91919973,4204.1,4204.0,0.8851]
[1758612796025,3.2078,4204.6,4204.1,0.764]
[1758612796221,0.42782,4204.3,4204.2,0.764]